bitfinex/quotes_BTCUSD_20250226
["timestamp","ask_amount","ask_price","bid_price","bid_amount"]
[1740556699386,0.1690769,88940.0,88939.0,0.03176926]
[1740556701402,0.19415818,88942.0,88939.0,0.03176926]
[1740556701832,0.168653,88940.0,88939.0,0.03176926]
[1740556702074,0.23013549,88942.0,88939.0,0.03176926]
[1740556702222,0.168651,88941.0,88939.0,0.03176926]
[1740556702423,0.168651,88941.0,88939.0,0.01854085]
[1740556702623,0.168651,88941.0,88940.0,0.02476769]
[1740556703487,0.20462631,88942.0,88941.0,0.01454085]
[1740556703685,0.03597731,88942.0,88940.0,0.01454085]
[1740556703916,0.3,88945.0,88944.0,0.18318585]
[1740556704129,0.22465114,88969.0,88945.0,0.01454085]
[1740556704427,0.00012559,88969.0,88950.0,0.01454085]
[1740556704561,0.168623,88956.0,88950.0,0.01454085]
[1740556704759,0.3,88957.0,88948.0,0.01454085]
[1740556705024,0.168622,88956.0,88950.0,0.01454085]
[1740556705234,0.3,88957.0,88950.0,0.01454085]
[1740556705389,0.168624,88956.0,88950.0,0.18317485]
[1740556705589,0.3,88957.0,88950.0,0.01454085]
[1740556705791,0.468621,88957.0,88952.0,0.01454085]
[1740556706111,0.168623,88956.0,88950.0,0.01454085]
[1740556706519,0.3,88967.0,88950.0,0.01454085]
[1740556706943,0.168632,88951.0,88950.0,0.01454085]
[1740556707142,0.168632,88951.0,88950.0,0.02475195]
[1740556707366,0.22483,88956.0,88948.0,0.003]
[1740556707507,0.0435,88968.0,88948.0,0.003]
[1740556707716,0.0435,88968.0,88949.0,0.01021267]
[1740556707932,0.16863,88952.0,88947.0,0.01454085]
[1740556708113,0.168628,88953.0,88951.0,0.01454085]
[1740556708366,0.168628,88953.0,88952.0,0.01020795]
[1740556709412,0.16863,88952.0,88951.0,0.01454085]
[1740556709623,0.224816,88962.0,88951.0,0.01454085]
[1740556709827,0.168628,88953.0,88951.0,0.02475038]
[1740556710023,0.16863,88952.0,88951.0,0.02475038]
[1740556710639,0.16863,88952.0,88951.0,0.02054085]
[1740556710841,0.16863,88952.0,88951.0,0.02554085]
[1740556711211,0.16863,88952.0,88951.0,0.02054085]
[1740556711642,0.16863,88952.0,88951.0,0.02554085]
[1740556718926,0.16528256,88952.0,88951.0,0.02554085]
[1740556722411,0.16528256,88952.0,88951.0,0.02638845]
[1740556722614,0.16570636,88952.0,88951.0,0.03659798]
[1740556722973,0.16570636,88952.0,88951.0,0.02638845]
[1740556730795,0.16570636,88952.0,88951.0,0.03659798]
[1740556734273,0.16570636,88952.0,88951.0,0.05652451]
[1740556737719,0.0004238,88952.0,88951.0,0.13902451]
[1740556738124,0.0004238,88952.0,88951.0,0.30765651]
[1740556739254,0.0004238,88952.0,88951.0,0.35345651]
[1740556740277,0.0004238,88952.0,88951.0,0.34745651]
[1740556740472,0.0004238,88952.0,88951.0,0.34245651]
[1740556740683,0.0004238,88952.0,88951.0,0.35013832]
[1740556740892,0.1690538,88952.0,88951.0,0.04498366]
[1740556741049,0.16941822,88952.0,88951.0,0.0768733]
[1740556741245,0.0004238,88952.0,88951.0,0.0768733]
[1740556741580,0.0004238,88952.0,88951.0,0.08039688]
[1740556741961,0.0004238,88952.0,88951.0,0.24202888]
[1740556742151,0.0004238,88952.0,88951.0,0.07339688]
[1740556742353,0.0004238,88952.0,88951.0,0.06639688]
[1740556742628,0.0004238,88952.0,88951.0,0.08793773]
[1740556742818,0.0004238,88952.0,88951.0,0.09493773]
[1740556742965,0.0004238,88952.0,88951.0,0.05604809]
[1740556743175,0.0004238,88952.0,88951.0,0.13144809]
[1740556743385,0.0004238,88952.0,88951.0,0.13844809]
[1740556744334,0.0004238,88952.0,88951.0,0.13144809]
[1740556745607,0.0004238,88952.0,88951.0,0.13844809]
[1740556750433,0.0004238,88952.0,88951.0,0.30708009]
[1740556750980,0.0004238,88952.0,88951.0,0.30355651]
[1740556753134,0.0004238,88952.0,88951.0,0.13492451]
[1740556753320,0.1690538,88952.0,88951.0,0.13492451]
[1740556754318,0.1690538,88952.0,88951.0,0.13844843]
[1740556755876,0.1690538,88952.0,88951.0,0.13492451]
[1740556758829,0.1690538,88952.0,88951.0,0.12038366]
[1740556759879,0.16863,88952.0,88951.0,0.12038366]
[1740556762987,0.16863,88952.0,88951.0,0.10045713]
[1740556765348,0.16863,88952.0,88951.0,0.02505713]
[1740556765767,0.16863,88952.0,88951.0,0.04493069]
[1740556767869,0.46898563,88952.0,88951.0,0.04493069]
[1740556768555,0.46898563,88952.0,88951.0,0.03472116]
[1740556769116,0.46898563,88952.0,88951.0,0.0148476]
[1740556769796,0.46940943,88952.0,88951.0,0.0148476]
[1740556771552,0.00077943,88952.0,88951.0,0.0148476]
[1740556773023,0.16940943,88952.0,88951.0,0.0148476]
[1740556785878,0.224833,88955.0,88951.0,0.0148476]
[1740556786707,0.224833,88955.0,88951.0,0.0078476]
[1740556787123,0.16863,88952.0,88951.0,0.0078476]
[1740556787457,0.16863,88952.0,88951.0,0.0138476]
[1740556787861,0.16863,88952.0,88951.0,0.0068476]
[1740556788288,0.16863,88952.0,88951.0,0.0138476]
[1740556788942,0.16863,88952.0,88951.0,0.0078476]
[1740556789144,0.16863,88952.0,88951.0,0.0148476]
[1740556790374,0.46863,88952.0,88951.0,0.0148476]
[1740556790600,0.168653,88940.0,88924.0,0.0786]
[1740556791300,0.512153,88940.0,88939.0,8e-07]
[1740556791679,0.542353,88940.0,88939.0,8e-07]
[1740556791878,0.54239484,88940.0,88939.0,8e-07]
[1740556792766,0.55051815,88940.0,88939.0,8e-07]
[1740556792968,0.468675,88928.0,88913.0,0.0468]
[1740556794097,0.468675,88928.0,88927.0,0.0028478]
[1740556795357,0.468675,88928.0,88927.0,0.0008478]
[1740556796018,0.468675,88928.0,88927.0,0.0048478]
[1740556796251,0.468675,88928.0,88927.0,0.0008478]
[1740556796469,0.468675,88928.0,88927.0,0.0058478]
[1740556801122,0.47699599,88928.0,88927.0,0.0058478]
[1740556804776,0.47699599,88928.0,88908.0,2e-07]
[1740556804777,0.468711,88909.0,88908.0,2e-07]
[1740556804975,0.168734,88897.0,88891.0,0.0455]
[1740556806128,0.168734,88897.0,88896.0,0.32551893]
[1740556806341,0.2149303,88897.0,88896.0,0.40761893]
[1740556806553,0.2149303,88897.0,88896.0,0.42215978]
[1740556806777,0.2149303,88897.0,88896.0,0.41161893]
[1740556807260,0.168734,88897.0,88896.0,0.41161893]
[1740556807709,0.168734,88897.0,88896.0,0.00441893]
[1740556807927,0.468749,88889.0,88888.0,9.3e-07]
[1740556808103,0.468749,88889.0,88888.0,8.571e-05]
[1740556809656,0.468749,88889.0,88888.0,0.00208571]
[1740556809968,0.468749,88889.0,88888.0,8.571e-05]
[1740556810389,0.04684727,88897.0,88890.0,0.01454085]
[1740556810530,0.168745,88891.0,88890.0,0.01454085]
[1740556812390,0.224991,88893.0,88890.0,0.01454085]
[1740556812624,0.169745,88891.0,88890.0,0.01854085]
[1740556812975,0.001,88891.0,88890.0,0.01854085]
[1740556813500,0.001,88891.0,88890.0,0.01454085]
[1740556813678,0.001,88891.0,88890.0,0.26538785]
[1740556814081,0.001,88891.0,88890.0,0.09664085]
[1740556814684,0.001,88891.0,88890.0,0.09764085]
[1740556815543,0.169745,88891.0,88890.0,0.09764085]
[1740556815951,0.001,88891.0,88890.0,0.09664085]
[1740556816183,0.224967,88902.0,88890.0,0.26623605]
[1740556816390,0.002,88891.0,88890.0,0.02738905]
[1740556816611,0.001,88891.0,88890.0,0.02138905]
[1740556816822,0.001,88891.0,88890.0,0.09928905]
[1740556816989,0.002,88891.0,88890.0,0.27503605]
[1740556817188,0.3,88909.0,88894.0,0.16874]
[1740556817391,0.001,88900.0,88896.0,0.01454085]
[1740556817595,0.001,88900.0,88895.0,0.07652402]
[1740556817793,0.001,88900.0,88899.0,0.21373]
[1740556817996,0.04617712,88909.0,88899.0,0.045]
[1740556818202,0.3,88925.0,88900.0,0.168728]
[1740556818379,0.168725,88902.0,88899.0,0.045]
[1740556818583,0.168722,88904.0,88899.0,0.045]
[1740556818783,0.168718,88906.0,88899.0,0.21725598]
[1740556818985,0.168719,88905.0,88900.0,0.01040042]
[1740556819193,0.168723,88904.0,88900.0,0.00940042]
[1740556819400,0.3,88921.0,88901.0,0.01978434]
[1740556819603,0.168717,88906.0,88902.0,0.01454085]
[1740556819811,0.168715,88907.0,88902.0,0.02488221]
[1740556820151,0.169717,88906.0,88902.0,0.02488221]
[1740556820364,0.001,88906.0,88902.0,0.02488221]
[1740556820572,0.04536297,88923.0,88903.0,0.0812]
[1740556820727,0.168721,88904.0,88903.0,0.0812]
[1740556820913,0.168721,88904.0,88903.0,0.09153961]
[1740556821316,0.168721,88904.0,88903.0,0.11132395]
[1740556821814,0.001,88906.0,88903.0,0.11132395]
[1740556822017,0.001,88906.0,88905.0,0.249219]
[1740556822221,0.001,88906.0,88905.0,0.31285985]
[1740556822439,0.34659148,88923.0,88910.0,0.0786]
[1740556822612,0.168698,88916.0,88910.0,0.247309]
[1740556822769,0.168698,88916.0,88911.0,0.0103256]
[1740556822974,0.1687,88915.0,88911.0,0.0103256]
[1740556823173,0.04659148,88923.0,88911.0,0.0103256]
[1740556823374,0.168702,88915.0,88911.0,0.0103256]
[1740556823600,0.3,88924.0,88911.0,0.0103256]
[1740556823814,0.168706,88912.0,88911.0,0.0103256]
[1740556824134,0.168708,88911.0,88910.0,0.0786]
[1740556825831,0.168705,88913.0,88910.0,0.0786]
[1740556826031,0.04698111,88924.0,88911.0,0.005]
[1740556826235,0.04698111,88924.0,88910.0,0.08892735]
[1740556826236,0.168708,88911.0,88910.0,0.08892735]
[1740556826416,0.04626525,88924.0,88910.0,0.0896]
[1740556826618,0.168704,88913.0,88910.0,0.09312573]
[1740556826844,0.3,88933.0,88910.0,0.08712573]
[1740556827043,0.224921,88920.0,88910.0,0.09112573]
[1740556827245,0.3,88933.0,88915.0,0.168698]
[1740556827431,0.3,88933.0,88911.0,0.001]
[1740556827432,0.3,88933.0,88917.0,0.0476]
[1740556827627,0.224861,88944.0,88917.0,0.0476]
[1740556828006,0.3,88930.0,88917.0,0.0476]
[1740556828168,0.16869,88921.0,88917.0,0.0476]
[1740556828375,0.3,88931.0,88917.0,0.0476]
[1740556828577,0.3,88929.0,88917.0,0.04768478]
[1740556828791,0.168694,88918.0,88917.0,0.04768478]
[1740556829194,0.224923,88920.0,88917.0,0.04768478]
[1740556829393,0.168694,88918.0,88917.0,0.04768478]
[1740556829781,0.16869,88921.0,88917.0,0.04768478]
[1740556830001,0.3,88929.0,88917.0,0.04768478]
[1740556830205,0.168694,88918.0,88917.0,0.04768478]
[1740556830365,0.168694,88918.0,88917.0,0.05268478]
[1740556830743,0.168694,88918.0,88917.0,0.05068478]
[1740556830858,0.168694,88918.0,88917.0,0.05268478]
[1740556831445,0.168694,88918.0,88917.0,0.05068478]
[1740556831786,0.168694,88918.0,88917.0,0.04768478]
[1740556832203,0.168694,88918.0,88917.0,8.478e-05]
[1740556832363,0.468694,88918.0,88917.0,8.478e-05]
[1740556832567,0.468694,88918.0,88917.0,0.00308478]
[1740556832765,0.468694,88918.0,88917.0,0.00708478]
[1740556833554,0.468694,88918.0,88917.0,8.478e-05]
[1740556833700,0.468694,88918.0,88917.0,0.00508478]
[1740556833906,0.168723,88903.0,88902.0,0.04107178]
[1740556834958,0.16723283,88903.0,88902.0,0.04107178]
[1740556836593,0.16723283,88903.0,88902.0,0.04907178]
[1740556837014,0.16723283,88903.0,88902.0,0.04607178]
[1740556837470,0.16723283,88903.0,88902.0,0.04707178]
[1740556837649,0.16723283,88903.0,88902.0,0.05207178]
[1740556839173,0.16723283,88903.0,88902.0,0.04707178]
[1740556839401,0.16723283,88903.0,88902.0,0.04607178]
[1740556839750,0.16723283,88903.0,88902.0,0.05007178]
[1740556840078,0.16723283,88903.0,88902.0,0.04507178]
[1740556840248,0.16723283,88903.0,88902.0,0.04107178]
[1740556840595,0.16723283,88903.0,88902.0,0.04607178]
[1740556841300,0.16723283,88903.0,88902.0,0.05107178]
[1740556842159,0.55144261,88903.0,88902.0,0.01]
[1740556842362,0.468745,88891.0,88890.0,0.0008482]
[1740556842564,0.468745,88891.0,88890.0,0.00097391]
[1740556843165,0.224991,88893.0,88890.0,0.00097391]
[1740556843368,0.168745,88891.0,88890.0,0.00097391]
[1740556843542,0.168749,88889.0,88888.0,9.3e-07]
[1740556843946,0.168749,88889.0,88876.0,0.00564198]
[1740556843947,0.168759,88884.0,88883.0,1e-08]
[1740556845271,0.469759,88884.0,88883.0,1e-08]
[1740556846218,0.471759,88884.0,88883.0,1e-08]
[1740556846708,0.470759,88884.0,88883.0,1e-08]
[1740556846956,0.472759,88884.0,88883.0,1e-08]
[1740556847365,0.168799,88863.0,88862.0,0.07305701]
[1740556847591,0.168799,88863.0,88862.0,0.07318274]
[1740556848535,0.169799,88863.0,88862.0,0.07818274]
[1740556848968,0.169799,88863.0,88862.0,0.08418274]
[1740556848969,0.170799,88863.0,88862.0,0.08418274]
[1740556851854,0.10049385,88865.0,88862.0,0.08418274]
[1740556852089,0.168799,88863.0,88862.0,0.08418274]
[1740556852806,0.168799,88863.0,88862.0,0.07318274]
[1740556853029,0.168799,88863.0,88862.0,0.08318274]
[1740556853468,0.168799,88863.0,88862.0,0.00712573]
[1740556853669,0.169799,88863.0,88862.0,0.00312573]
[1740556853821,0.169799,88863.0,88862.0,0.00397473]
[1740556854025,0.170799,88863.0,88862.0,0.01097473]
[1740556854406,0.169799,88863.0,88862.0,0.00397473]
[1740556854615,0.169799,88863.0,88862.0,0.01097473]
[1740556854822,0.169799,88863.0,88862.0,0.00797473]
[1740556855336,0.170799,88863.0,88862.0,0.01397473]
[1740556855678,0.170799,88863.0,88862.0,0.00797473]
[1740556855835,0.170799,88863.0,88862.0,0.01097473]
[1740556856406,0.169799,88863.0,88862.0,0.00397473]
[1740556856861,0.169799,88863.0,88862.0,0.00697473]
[1740556857386,0.169799,88863.0,88862.0,0.00397473]
[1740556857590,0.169799,88863.0,88862.0,0.00697473]
[1740556858532,0.469799,88863.0,88862.0,0.00697473]
[1740556859147,0.468799,88863.0,88862.0,0.00397473]
[1740556859305,0.468799,88863.0,88862.0,0.00597473]
[1740556859499,0.468799,88863.0,88862.0,0.00397473]
[1740556859906,0.468799,88863.0,88862.0,0.00297473]
[1740556860401,0.468799,88863.0,88862.0,0.00597473]
[1740556860800,0.468799,88863.0,88862.0,0.00297473]
[1740556861366,0.468799,88863.0,88862.0,0.00597473]
[1740556870904,0.168799,88863.0,88862.0,0.08377473]
[1740556871506,0.468799,88863.0,88862.0,0.08377473]
[1740556872810,0.468799,88863.0,88862.0,0.13047473]
[1740556873840,0.03833588,88865.0,88862.0,0.13047473]
[1740556873844,0.03833588,88865.0,88863.0,0.0811]
[1740556874002,0.225019,88882.0,88874.0,0.0467]
[1740556874571,0.168773,88877.0,88874.0,0.0467]
[1740556874775,0.225019,88881.0,88874.0,0.0467]
[1740556874931,0.3,88880.0,88874.0,0.0467]
[1740556875539,0.468766,88880.0,88874.0,0.0467]
[1740556875742,0.001,88877.0,88874.0,0.0527]
[1740556875943,0.225025,88879.0,88874.0,0.0467]
[1740556876149,0.168772,88878.0,88874.0,0.0467]
[1740556876438,0.168772,88877.0,88874.0,0.0467]
[1740556876648,0.22502,88881.0,88874.0,0.0467]
[1740556876856,0.168767,88880.0,88874.0,0.0467]
[1740556877089,0.03869588,88882.0,88874.0,0.0467]
[1740556877336,0.50745888,88882.0,88874.0,0.0507]
[1740556877540,0.3,88885.0,88874.0,0.0467]
[1740556877771,0.16877,88879.0,88874.0,0.0467]
[1740556878013,0.3,88881.0,88874.0,0.219477]
[1740556878250,0.3,88881.0,88874.0,0.215477]
[1740556878531,0.3,88881.0,88874.0,0.0557]
[1740556878762,0.168775,88876.0,88874.0,0.0517]
[1740556878997,0.225022,88880.0,88874.0,0.0467]
[1740556879230,0.168772,88878.0,88874.0,0.0517]
[1740556879472,0.03911738,88882.0,88874.0,0.0557]
[1740556879712,0.16877,88878.0,88874.0,0.0557]
[1740556879948,0.168767,88880.0,88874.0,0.0557]
[1740556880411,0.168769,88879.0,88874.0,0.0557]
[1740556880652,0.168769,88879.0,88874.0,0.0507]
[1740556880911,0.03912128,88882.0,88874.0,0.0547]
[1740556881143,0.06897427,88881.0,88874.0,0.0507]
[1740556881375,0.16877,88878.0,88874.0,0.0517]
[1740556881613,0.168768,88879.0,88874.0,0.0577]
[1740556881838,0.225022,88881.0,88874.0,0.0527]
[1740556882047,0.03902392,88882.0,88874.0,0.0577]
[1740556882250,0.168766,88881.0,88874.0,0.0517]
[1740556882458,0.03902392,88882.0,88874.0,0.0517]
[1740556882703,0.03902392,88882.0,88881.0,0.168764]
[1740556882905,0.03902392,88882.0,88881.0,0.250364]
[1740556883281,0.0004245,88884.0,88882.0,0.0492]
[1740556883547,0.03983512,88884.0,88883.0,0.0816]
[1740556883743,0.0004245,88884.0,88883.0,0.0816]
[1740556884200,0.0004245,88884.0,88883.0,0.0806]
[1740556884916,0.0014245,88884.0,88883.0,0.0876]
[1740556885639,0.0014245,88884.0,88883.0,0.0946]
[1740556886569,0.0014245,88884.0,88883.0,0.10498132]
[1740556891783,0.0014245,88884.0,88883.0,0.27374232]
[1740556892201,0.0014245,88884.0,88883.0,0.75180738]
[1740556893197,0.0004245,88884.0,88883.0,0.74480738]
[1740556893368,0.0004245,88884.0,88883.0,0.75180738]
[1740556894193,0.09999903,88950.0,88900.0,0.1261]
[1740556894398,0.0629,88934.0,88901.0,0.09022421]
[1740556894756,0.03324751,88920.0,88917.0,0.215396]
[1740556894962,0.224886,88934.0,88917.0,0.301616]
[1740556895137,0.22465114,88949.0,88917.0,0.301616]
[1740556895498,0.00054989,88918.0,88917.0,0.301616]
[1740556895700,0.00054989,88918.0,88917.0,0.13292]
[1740556896119,0.00054989,88918.0,88917.0,0.13892]
[1740556896319,0.00054989,88918.0,88917.0,0.14269214]
[1740556896523,0.00054989,88918.0,88917.0,0.13669214]
[1740556896724,0.00054989,88918.0,88917.0,0.14369214]
[1740556897587,0.00054989,88918.0,88917.0,0.13669214]
[1740556897758,0.00054989,88918.0,88917.0,0.14369214]
[1740556898117,0.00054989,88918.0,88917.0,0.15401393]
[1740556899073,0.00054989,88918.0,88917.0,0.32270993]
[1740556899648,0.00054989,88918.0,88917.0,0.15401393]
[1740556901969,0.00054989,88918.0,88917.0,0.32270993]
[1740556902168,0.00054989,88918.0,88917.0,0.33725078]
[1740556902510,0.00054989,88918.0,88917.0,0.77609831]
[1740556902722,0.00054989,88918.0,88917.0,1.07609831]
[1740556902881,0.00054989,88918.0,88917.0,1.17609831]
[1740556903907,0.00054989,88918.0,88917.0,1.1796226]
[1740556904107,0.00054989,88918.0,88917.0,1.1726226]
[1740556904339,0.00054989,88918.0,88917.0,1.1656226]
[1740556904495,0.00054989,88918.0,88917.0,1.1796226]
[1740556904893,0.00054989,88918.0,88917.0,1.1726226]
[1740556905097,0.00054989,88918.0,88917.0,1.19238557]
[1740556905298,0.10707778,88943.0,88917.0,1.03068957]
[1740556905482,0.168649,88942.0,88928.0,0.01454085]
[1740556905683,0.168651,88941.0,88933.0,0.01454085]
[1740556905948,0.168651,88941.0,88935.0,0.01454085]
[1740556906197,0.168658,88937.0,88936.0,0.01028855]
[1740556906618,0.168658,88937.0,88936.0,0.01996855]
[1740556906826,0.168658,88937.0,88936.0,0.01028855]
[1740556907043,0.168658,88937.0,88936.0,0.01996855]
[1740556907454,0.168658,88937.0,88936.0,0.01028855]
[1740556907762,0.168658,88937.0,88936.0,0.01996855]
[1740556907937,0.00041893,88943.0,88936.0,0.01028855]
[1740556908140,0.168656,88938.0,88937.0,0.00968]
[1740556908876,0.393526,88940.0,88937.0,0.00968]
[1740556909073,0.168655,88939.0,88937.0,0.00968]
[1740556909272,0.168651,88941.0,88937.0,0.00968]
[1740556909474,0.00041893,88943.0,88938.0,0.01028505]
[1740556909840,0.00041893,88943.0,88939.0,0.077]
[1740556910294,0.00041893,88943.0,88940.0,0.23515055]
[1740556910635,0.00041893,88943.0,88942.0,0.23288985]
[1740556910776,0.00041893,88943.0,88942.0,0.06424085]
[1740556910984,0.00041893,88943.0,88942.0,0.0745189]
[1740556911187,0.00041893,88943.0,88942.0,0.05997805]
[1740556911811,0.00041893,88943.0,88942.0,0.06597805]
[1740556912014,0.00041893,88943.0,88942.0,0.06997805]
[1740556912755,0.16906593,88943.0,88942.0,0.06997805]
[1740556913518,0.00041893,88943.0,88942.0,0.39507805]
[1740556914109,0.00041893,88943.0,88942.0,0.40475805]
[1740556914954,0.00041893,88943.0,88942.0,0.39875805]
[1740556915380,0.00041893,88943.0,88942.0,0.40075805]
[1740556915739,0.00041893,88943.0,88942.0,0.40175805]
[1740556915740,0.16906593,88943.0,88942.0,0.40175805]
[1740556915945,0.00041893,88943.0,88942.0,0.40175805]
[1740556916149,0.00041893,88943.0,88942.0,0.42150873]
[1740556917429,0.00041893,88943.0,88942.0,0.42850873]
[1740556917631,0.00084303,88943.0,88942.0,0.42850873]
[1740556917858,0.00084303,88943.0,88942.0,0.61169858]
[1740556918058,0.00084303,88943.0,88942.0,0.68999858]
[1740556918993,0.00084303,88943.0,88942.0,0.68299858]
[1740556919237,0.00084303,88943.0,88942.0,0.80374611]
[1740556919472,0.00084303,88943.0,88942.0,0.83536777]
[1740556920247,0.00084303,88943.0,88942.0,0.83189122]
[1740556920879,0.00084303,88943.0,88942.0,0.83889122]
[1740556922887,0.00084303,88943.0,88942.0,1.37549122]
[1740556923717,0.00084303,88943.0,88942.0,1.36849122]
[1740556923928,0.00084303,88943.0,88942.0,1.50007082]
[1740556924248,0.00084303,88943.0,88942.0,1.80007082]
[1740556924453,0.00084303,88943.0,88942.0,1.90707082]
[1740556925022,0.00084303,88943.0,88942.0,1.94203827]
[1740556925222,0.00084303,88943.0,88942.0,1.91045867]
[1740556925441,0.000424,88955.0,88950.0,0.1]
[1740556925647,0.00055013,88954.0,88953.0,0.60956885]
[1740556925867,0.00055013,88954.0,88953.0,1.58501638]
[1740556926068,0.00055013,88954.0,88953.0,1.5952752]
[1740556926800,0.00055013,88954.0,88953.0,1.64664754]
[1740556926936,0.00055013,88954.0,88953.0,1.18154299]
[1740556927142,0.00055013,88954.0,88953.0,1.07479546]
[1740556927613,0.16917613,88954.0,88953.0,0.39025461]
[1740556927949,0.16917613,88954.0,88953.0,0.39725461]
[1740556928153,0.16917613,88954.0,88953.0,0.07215461]
[1740556928560,0.16917613,88954.0,88953.0,0.06189579]
[1740556929047,0.16917613,88954.0,88953.0,0.05837234]
[1740556929252,0.00055013,88954.0,88953.0,0.05837234]
[1740556929628,0.00055013,88954.0,88953.0,0.07563116]
[1740556930106,0.16917613,88954.0,88953.0,0.07563116]
[1740556930310,0.16917613,88954.0,88953.0,0.06537234]
[1740556930521,0.16917613,88954.0,88953.0,0.07237234]
[1740556930730,0.16917613,88954.0,88953.0,0.04075068]
[1740556931115,0.16917613,88954.0,88953.0,0.02675068]
[1740556931334,0.16917613,88954.0,88953.0,0.01975068]
[1740556931469,0.16917613,88954.0,88953.0,0.03375068]
[1740556932095,0.16917613,88954.0,88953.0,0.02675068]
[1740556932298,0.00055013,88954.0,88953.0,0.014]
[1740556933107,0.00055013,88954.0,88953.0,0.19716885]
[1740556933335,0.00055013,88954.0,88953.0,0.69424876]
[1740556933566,0.00055013,88954.0,88953.0,0.6926752]
[1740556933800,0.00055013,88954.0,88953.0,0.6856752]
[1740556934052,0.00055013,88954.0,88953.0,0.6786752]
[1740556934245,0.00055013,88954.0,88953.0,0.6836752]
[1740556934497,0.00055013,88954.0,88953.0,0.6856752]
[1740556935236,0.00055013,88954.0,88953.0,0.77889848]
[1740556935735,0.00055013,88954.0,88953.0,0.83044257]
[1740556935988,0.00055013,88954.0,88953.0,1.46004257]
[1740556936270,0.00055013,88954.0,88953.0,1.79511052]
[1740556936508,0.00055013,88954.0,88953.0,1.89511052]
[1740556936698,0.000424,88955.0,88954.0,0.80426685]
[1740556936927,0.000424,88955.0,88954.0,0.95308233]
[1740556937142,0.000424,88955.0,88954.0,0.9633394]
[1740556938072,0.000424,88955.0,88954.0,0.8870194]
[1740556938281,0.000424,88955.0,88954.0,0.74227145]
[1740556938421,0.000424,88955.0,88954.0,0.75547473]
[1740556938623,0.000424,88955.0,88954.0,0.79301882]
[1740556938846,0.000424,88955.0,88954.0,0.80001882]
[1740556939504,0.000424,88955.0,88954.0,0.90001882]
[1740556940060,0.000424,88955.0,88954.0,0.80701882]
[1740556940271,0.000424,88955.0,88954.0,1.66871882]
[1740556940697,0.000424,88955.0,88954.0,1.36871882]
[1740556943281,0.000424,88955.0,88954.0,1.36171882]
[1740556943991,0.000424,88955.0,88954.0,1.36871882]
[1740556944373,0.000424,88955.0,88954.0,1.36171882]
[1740556944552,0.000424,88955.0,88954.0,1.36871882]
[1740556953199,0.000424,88955.0,88954.0,0.48960444]
[1740556953405,0.169048,88955.0,88954.0,0.40442444]
[1740556953608,0.169048,88955.0,88954.0,0.40090116]
[1740556953997,0.169048,88955.0,88954.0,0.39390116]
[1740556954288,0.000424,88955.0,88954.0,0.51798307]
[1740556954464,0.000424,88955.0,88954.0,0.51098307]
[1740556954987,0.000424,88955.0,88954.0,0.51183107]
[1740556955295,0.000424,88955.0,88954.0,0.53337192]
[1740556956072,2.4e-05,88955.0,88954.0,0.52637192]
[1740556956272,2.4e-05,88955.0,88954.0,0.51937192]
[1740556956478,2.4e-05,88955.0,88954.0,0.52637192]
[1740556957196,2.4e-05,88955.0,88954.0,0.61117192]
[1740556957369,2.4e-05,88955.0,88954.0,0.72491945]
[1740556958806,2.4e-05,88955.0,88954.0,0.7447555]
[1740556959769,0.1671667,88982.0,88976.0,0.168583]
[1740556959972,0.00054938,88985.0,88957.0,0.01454085]
[1740556960174,0.224771,88980.0,88971.0,0.168592]
[1740556960371,0.168583,88977.0,88972.0,0.0102256]
[1740556960571,0.168583,88977.0,88972.0,0.01035118]
[1740556960784,0.168583,88977.0,88976.0,0.002]
[1740556961234,0.449325,89023.0,88976.0,0.002]
[1740556961410,0.168582,88977.0,88976.0,0.00186733]
[1740556961617,0.224749,88988.0,88976.0,0.00186733]
[1740556962456,0.224749,88988.0,88972.0,0.00012558]
[1740556962457,0.224775,88978.0,88972.0,0.00012558]
[1740556962633,0.224775,88978.0,88973.0,0.01022385]
[1740556962815,0.224749,88988.0,88973.0,0.01022385]
[1740556963018,0.168577,88981.0,88972.0,0.00312558]
[1740556963247,0.168579,88979.0,88973.0,0.16859]
[1740556963524,0.168579,88979.0,88974.0,0.0102221]
[1740556963749,0.168582,88978.0,88974.0,0.0102221]
[1740556964021,0.002,88988.0,88972.0,0.00012558]
[1740556964341,0.168587,88975.0,88973.0,0.01022385]
[1740556964591,0.224751,88987.0,88973.0,0.01022385]
[1740556964794,0.168578,88980.0,88974.0,0.005]
[1740556964945,0.168578,88980.0,88973.0,0.16859]
[1740556965151,0.224764,88982.0,88973.0,0.16859]
[1740556965353,0.168579,88979.0,88974.0,0.0102221]
[1740556965598,0.22476,88984.0,88974.0,0.0102221]
[1740556965796,0.0290751,88991.0,88975.0,0.00157337]
[1740556966236,0.0004241,88992.0,88977.0,0.01454085]
[1740556966391,0.0004241,88992.0,88988.0,0.168561]
[1740556966599,0.0004241,88992.0,88985.0,0.224754]
[1740556967001,0.0004241,88992.0,88986.0,0.17876613]
[1740556967179,0.1689781,88992.0,88986.0,0.01020113]
[1740556967393,0.168563,88987.0,88986.0,0.01020113]
[1740556967732,0.168569,88985.0,88979.0,0.01454085]
[1740556967900,0.0004241,88992.0,88979.0,0.01454085]
[1740556968105,0.168575,88981.0,88979.0,0.01454085]
[1740556968301,0.168575,88981.0,88980.0,0.02475247]
[1740556969488,0.168575,88981.0,88980.0,0.01021162]
[1740556969709,0.168579,88979.0,88978.0,0.00968]
[1740556970146,0.168579,88979.0,88978.0,0.35953596]
[1740556970341,0.168577,88980.0,88978.0,0.34932085]
[1740556970536,0.168565,88986.0,88980.0,0.175576]
[1740556970802,0.000424,88987.0,88980.0,0.013]
[1740556971003,0.225177,88987.0,88980.0,0.007]
[1740556971210,0.168571,88983.0,88981.0,0.01020987]
[1740556971414,0.224754,88986.0,88981.0,0.01020987]
[1740556971627,0.000424,88987.0,88981.0,0.01020987]
[1740556971804,0.168568,88985.0,88981.0,0.01020987]
[1740556972184,0.000424,88987.0,88981.0,0.01020987]
[1740556972399,0.16857,88984.0,88981.0,0.01020987]
[1740556972575,0.16857,88984.0,88978.0,0.52490085]
[1740556972576,0.16857,88984.0,88978.0,0.51790085]
[1740556972780,0.000424,88987.0,88982.0,0.01020812]
[1740556972781,0.168571,88983.0,88982.0,0.01020812]
[1740556972980,0.168574,88982.0,88981.0,0.007]
[1740556973369,0.168574,88982.0,88978.0,0.34932085]
[1740556973574,0.168575,88981.0,88978.0,0.34932085]